bitfinex/quotes_BTCUSD_20260127
["timestamp","ask_amount","ask_price","bid_price","bid_amount"]
[1769546949796,0.18966982,89477.0,89452.0,0.08954305]
[1769546950010,0.18966982,89477.0,89437.0,0.08954305]
[1769546950011,0.18966982,89477.0,89442.0,0.02282859]
[1769546950239,0.18966982,89477.0,89451.0,0.08954305]
[1769546950240,0.00013941,89477.0,89451.0,0.08954305]
[1769546950453,0.00013941,89477.0,89452.0,0.00110499]
[1769546951086,0.00013941,89477.0,89456.0,0.08954305]
[1769546951310,0.00243299,89487.0,89477.0,0.00013941]
[1769546952151,10.0035,89500.0,89477.0,0.00013941]
[1769546952362,0.08954305,89499.0,89477.0,0.00013941]
[1769546952560,0.14540982,89499.0,89477.0,1.836e-05]
[1769546952768,0.08954305,89499.0,89477.0,1.836e-05]
[1769546953390,0.0558685,89496.0,89464.0,0.02282859]
[1769546953597,0.3130117,89499.0,89464.0,0.022968]
[1769546953803,0.05586936,89495.0,89464.0,0.022968]
[1769546954019,0.30285931,89498.0,89464.0,0.022968]
[1769546954646,0.11318949,89498.0,89464.0,0.022968]
[1769546955078,0.05586779,89497.0,89464.0,0.022968]
[1769546955356,0.11318949,89498.0,89464.0,0.022968]
[1769546955556,0.18966982,89491.0,89464.0,0.00013941]
[1769546956332,0.08954305,89484.0,89464.0,0.00013941]
[1769546956550,0.18966982,89484.0,89464.0,0.00013941]
[1769546956878,0.05587778,89481.0,89455.0,0.02282859]
[1769546957082,0.055883,89473.0,89443.0,0.02282859]
[1769546957299,0.27921287,89463.0,89439.0,0.10846066]
[1769546957513,0.02358991,89475.0,89433.0,0.02282859]
[1769546957514,0.18966982,89464.0,89433.0,0.02282859]
[1769546957729,0.08954305,89479.0,89450.0,0.32864636]
[1769546957938,0.08954305,89479.0,89451.0,0.02282859]
[1769546958368,0.02045225,89478.0,89441.0,0.33296678]
[1769546958577,0.08954305,89465.0,89441.0,0.10846066]
[1769546958786,0.02358991,89474.0,89433.0,0.10846066]
[1769546959004,0.08954305,89471.0,89441.0,0.02282859]
[1769546959222,0.08954305,89470.0,89441.0,0.02282859]
[1769546959441,0.02358991,89487.0,89442.0,0.02282859]
[1769546959656,0.08954305,89475.0,89444.0,0.02282859]
[1769546960059,0.08954305,89474.0,89445.0,0.02282859]
[1769546960263,0.08954305,89474.0,89446.0,0.10846066]
[1769546960480,0.08954305,89474.0,89447.0,0.10846066]
[1769546960688,0.08954305,89474.0,89448.0,0.10846066]
[1769546960893,0.08954305,89474.0,89449.0,0.10846066]
[1769546961034,0.08954305,89474.0,89450.0,0.10846066]
[1769546961238,0.05587304,89489.0,89451.0,0.10846066]
[1769546961445,0.08954305,89485.0,89453.0,0.02282859]
[1769546961654,0.08954305,89485.0,89455.0,0.02282859]
[1769546961871,0.18966982,89480.0,89456.0,0.10846066]
[1769546962071,0.24554881,89480.0,89457.0,0.10846066]
[1769546962287,0.08954305,89471.0,89458.0,0.10846066]
[1769546962504,0.24555287,89473.0,89446.0,0.02282859]
[1769546962703,0.08954305,89471.0,89446.0,0.02282859]
[1769546962970,0.05588958,89463.0,89437.0,0.15371419]
[1769546963185,0.05588958,89463.0,89437.0,0.02282859]
[1769546963186,0.05588957,89463.0,89437.0,0.02282859]
[1769546963385,0.08954305,89471.0,89439.0,0.1308856]
[1769546963590,0.08954305,89471.0,89440.0,0.15460851]
[1769546963791,0.11484,89476.0,89444.0,0.02372291]
[1769546963950,0.08954305,89470.0,89444.0,0.02372291]
[1769546964152,0.19932501,89486.0,89444.0,0.02372291]
[1769546964153,0.08954305,89485.0,89444.0,0.05590028]
[1769546964429,0.0002456,89481.0,89452.0,0.02372291]
[1769546964763,0.05587899,89480.0,89452.0,0.02372291]
[1769546964967,0.22200926,89480.0,89452.0,0.02372291]
[1769546965177,0.2074425,89479.0,89452.0,0.02372291]
[1769546965442,0.2075487,89479.0,89452.0,0.02372291]
[1769546965644,0.0001062,89479.0,89452.0,0.02372291]
[1769546965853,0.08954305,89478.0,89452.0,0.02372291]
[1769546966277,0.22348293,89493.0,89450.0,0.1308856]
[1769546966278,10.0035,89500.0,89453.0,0.20981181]
[1769546966493,10.0035,89500.0,89490.0,0.32864636]
[1769546966708,10.0035,89500.0,89484.0,0.1308856]
[1769546966916,10.0035,89500.0,89484.0,0.02314462]
[1769546967118,10.0035,89500.0,89485.0,0.1308856]
[1769546967291,10.0035,89500.0,89486.0,0.02314462]
[1769546967875,10.0035,89500.0,89474.0,0.18675162]
[1769546968099,10.0035,89500.0,89474.0,0.02328402]
[1769546968505,0.08954305,89499.0,89474.0,0.0001394]
[1769546968932,0.2074425,89498.0,89474.0,0.0001394]
[1769546969307,0.11484,89497.0,89480.0,0.32864636]
[1769546969516,0.11484,89497.0,89474.0,0.20995121]
[1769546969729,10.0035,89500.0,89474.0,0.20995121]
[1769546969928,0.14168,89499.0,89476.0,0.05588081]
[1769546970138,0.23122305,89499.0,89474.0,0.0001394]
[1769546970584,0.11160278,89498.0,89474.0,0.0001394]
[1769546970777,0.11160278,89498.0,89454.0,0.20981181]
[1769546970778,0.00161136,89471.0,89457.0,0.163607]
[1769546970988,0.00161136,89471.0,89445.0,0.02314462]
[1769546970989,0.11484,89470.0,89445.0,0.02314462]
[1769546971184,0.11484,89470.0,89426.0,0.02684]
[1769546971185,0.08954305,89468.0,89432.0,0.02314462]
[1769546971392,0.2074425,89466.0,89432.0,0.02314462]
[1769546971599,0.02684,89467.0,89420.0,0.32864636]
[1769546971600,0.2074425,89464.0,89420.0,0.32864636]
[1769546971811,0.23124568,89464.0,89422.0,0.06221978]
[1769546972018,0.23124568,89464.0,89424.0,0.02314462]
[1769546972226,0.2074425,89463.0,89424.0,0.02314462]
[1769546972435,0.2074425,89463.0,89430.0,0.32864636]
[1769546972564,0.2074425,89463.0,89409.0,0.33553457]
[1769546972565,0.23124568,89486.0,89450.0,0.32864636]
[1769546972771,0.11484,89470.0,89463.0,0.00824924]
[1769546972974,10.0035,89500.0,89465.0,0.02314462]
[1769546973254,0.11484,89499.0,89483.0,0.02314462]
[1769546973466,0.11484,89499.0,89483.0,0.07902105]
[1769546973695,10.00363945,89500.0,89483.0,0.07902105]
[1769546973696,0.11484,89498.0,89485.0,0.22349899]
[1769546973908,0.11484,89498.0,89484.0,0.05587588]
[1769546974121,0.11484,89498.0,89483.0,0.02314462]
[1769546974372,0.11484,89498.0,89484.0,0.05587548]
[1769546974566,10.00363945,89500.0,89483.0,0.02314462]
[1769546974779,0.11484,89497.0,89483.0,0.02314462]
[1769546975334,0.11484,89497.0,89471.0,0.02314462]
[1769546975335,0.00175076,89483.0,89471.0,0.02314462]
[1769546975547,0.11484,89497.0,89476.0,0.08730718]
[1769546975794,0.11484,89497.0,89472.0,0.02314462]
[1769546975795,0.11484,89497.0,89477.0,0.08730718]
[1769546976749,10.00363945,89500.0,89478.0,0.05587965]
[1769546976949,0.11484,89499.0,89477.0,0.08730718]
[1769546977158,0.11484,89499.0,89479.0,0.05587888]
[1769546977364,10.00363945,89500.0,89470.0,0.32864636]
[1769546977365,4.31975328,89500.0,89499.0,0.06586654]
[1769546977577,3.65794753,89500.0,89499.0,0.03314462]
[1769546977735,3.62438499,89500.0,89499.0,0.01]
[1769546977952,3.59082245,89500.0,89499.0,0.01]
[1769546978199,3.59082245,89500.0,89480.0,0.32864636]
[1769546978407,3.59082245,89500.0,89470.0,0.32864636]
[1769546978617,0.22694481,89499.0,89470.0,0.32864636]
[1769546979034,3.59082245,89500.0,89463.0,0.22355512]
[1769546979035,0.14164,89498.0,89480.0,0.32864636]
[1769546979234,0.14164,89497.0,89480.0,0.32864636]
[1769546979445,0.14164,89496.0,89464.0,0.24669716]
[1769546979650,0.14164,89496.0,89470.0,0.38453096]
[1769546979886,0.14164,89496.0,89470.0,0.32864636]
[1769546980297,0.14164,89495.0,89480.0,0.32864636]
[1769546980510,3.47602245,89500.0,89480.0,0.32864636]
[1769546980736,0.13336622,89499.0,89490.0,0.32864636]
[1769546981162,3.27222165,89500.0,89490.0,0.32864636]
[1769546981373,0.75447483,89500.0,89499.0,0.05586654]
[1769546981581,0.0002,89518.0,89490.0,0.32864636]
[1769546981791,0.14164,89515.0,89506.0,0.32864636]
[1769546982034,0.14164,89515.0,89490.0,0.00013945]
[1769546982035,0.14164,89515.0,89501.0,0.05586487]
[1769546982238,0.26892528,89547.0,89501.0,0.02314462]
[1769546982449,0.26892528,89547.0,89515.0,0.32864636]
[1769546982450,0.14164,89537.0,89515.0,0.32864636]
[1769546983284,0.26892528,89547.0,89515.0,0.32864636]
[1769546983489,0.13585077,89537.0,89527.0,0.32864636]
[1769546983691,0.26913788,89560.0,89530.0,0.055847]
[1769546983892,0.26913788,89560.0,89527.0,0.32864636]
[1769546984251,0.14164,89548.0,89516.0,0.02314462]
[1769546984462,0.2891909,89547.0,89521.0,0.05585237]
[1769546984667,0.4308309,89547.0,89511.0,0.02314462]
[1769546984878,0.2891909,89546.0,89511.0,0.02314462]
[1769546985507,0.08954305,89545.0,89510.0,0.32864636]
[1769546985713,0.08954305,89545.0,89500.0,0.32864636]
[1769546985714,0.31299408,89544.0,89500.0,0.32864636]
[1769546985971,0.31299408,89544.0,89502.0,0.05586406]
[1769546986110,0.31299408,89544.0,89502.0,0.02314462]
[1769546986321,0.31299408,89544.0,89471.0,0.44706918]
[1769546986322,0.2891909,89541.0,89490.0,0.32864636]
[1769546986525,0.2891909,89530.0,89490.0,0.32864636]
[1769546986818,0.2891909,89530.0,89500.0,0.32864636]
[1769546987039,0.23112,89529.0,89500.0,0.32864636]
[1769546987243,0.2891909,89528.0,89500.0,0.32864636]
[1769546987439,0.2891909,89528.0,89490.0,0.35179098]
[1769546987643,0.2891909,89528.0,89491.0,0.00110257]
[1769546988251,0.2891909,89528.0,89492.0,0.02314462]
[1769546988457,0.2891909,89528.0,89493.0,0.00110286]
[1769546988952,0.2891909,89528.0,89494.0,0.02314462]
[1769546989153,0.2891909,89528.0,89496.0,0.02314462]
[1769546989523,0.2891909,89528.0,89498.0,0.02314462]
[1769546989748,0.08954305,89527.0,89499.0,0.00110284]
[1769546989951,0.2891909,89526.0,89491.0,0.00110303]
[1769546990123,0.2891909,89526.0,89487.0,0.02314462]
[1769546990370,0.2891909,89526.0,89480.0,0.32864636]
[1769546990371,0.2891909,89526.0,89489.0,0.02314462]
[1769546990569,0.08954305,89527.0,89490.0,0.00110297]
[1769546990570,0.2891909,89524.0,89490.0,0.00110297]
[1769546990778,0.2891909,89524.0,89491.0,0.02424758]
[1769546991451,0.2891909,89523.0,89491.0,0.02424758]
[1769546991653,0.2891909,89523.0,89491.0,0.02314462]
[1769546991858,0.0558525,89522.0,89491.0,0.02314462]
[1769546992064,0.2891909,89521.0,89491.0,0.02314462]
[1769546992923,0.34504372,89521.0,89491.0,0.02314462]
[1769546993126,0.23108,89520.0,89491.0,0.02314462]
[1769546993420,0.2891909,89519.0,89491.0,0.02314462]
[1769546993803,0.0558548,89518.0,89491.0,0.02314462]
[1769546994046,0.2891909,89512.0,89491.0,0.02314462]
[1769546994252,0.05585935,89511.0,89471.0,0.02314462]
[1769546994460,0.2891909,89510.0,89471.0,0.02314462]
[1769546994895,0.05599893,89511.0,89471.0,0.02314462]
[1769546994896,0.08954305,89509.0,89471.0,0.02314462]
[1769546995105,0.28916301,89508.0,89471.0,0.02314462]
[1769546995316,0.28916301,89501.0,89471.0,0.02314462]
[1769546995539,0.0001394,89511.0,89471.0,0.02314462]
[1769546995540,0.28916301,89499.0,89471.0,0.02314462]
[1769546995930,0.28916301,89496.0,89471.0,0.02314462]
[1769546996433,0.28916301,89496.0,89458.0,0.02371271]
[1769546996646,0.28916301,89493.0,89458.0,0.02371271]
[1769546996813,0.28916301,89490.0,89458.0,0.02371271]
[1769546997027,0.28916301,89490.0,89459.0,0.00111411]
[1769546997226,0.0248273,89495.0,89459.0,0.00111411]
[1769546997403,0.11476,89500.0,89446.0,0.000613]
[1769546997404,0.0248273,89486.0,89447.0,0.02371271]
[1769546997607,0.05588148,89476.0,89446.0,0.000613]
[1769546997814,0.28916301,89474.0,89446.0,0.000613]
[1769546998788,0.28916301,89474.0,89446.0,0.00107802]
[1769546998970,0.28916301,89474.0,89446.0,0.02479073]
[1769547000150,0.28916301,89474.0,89440.0,0.32864636]
[1769547000351,0.28916301,89474.0,89362.0,2.23806754]
[1769547000352,0.0248273,89458.0,89410.0,0.32864636]
[1769547000550,0.08954305,89459.0,89411.0,0.02371271]
[1769547000551,0.01,89440.0,89411.0,0.02371271]
[1769547000778,0.0248273,89472.0,89421.0,0.02371271]
[1769547001052,0.32864636,89480.0,89410.0,0.06137898]
[1769547001053,0.08948,89457.0,89440.0,0.32864636]
[1769547001284,0.05589555,89453.0,89421.0,0.02371271]
[1769547001493,0.01,89440.0,89421.0,0.02371271]
[1769547001709,0.01,89440.0,89410.0,0.39002534]
[1769547001710,0.28916301,89438.0,89411.0,0.02418431]
[1769547001920,0.01,89440.0,89411.0,0.02418431]
[1769547001921,0.14164,89437.0,89420.0,0.32864636]
[1769547002556,0.28916301,89436.0,89411.0,0.02418431]
[1769547002996,0.14164,89435.0,89421.0,0.02371271]
[1769547003201,0.00046453,89440.0,89421.0,0.02371271]
[1769547003202,0.14164,89434.0,89421.0,0.02371271]
[1769547003406,0.02684,89433.0,89421.0,0.02371271]
[1769547004249,0.14164,89432.0,89421.0,0.02371271]
[1769547004466,0.14164,89432.0,89366.0,0.29388314]
[1769547004467,0.01,89421.0,89404.0,0.02371271]
[1769547004692,0.01,89421.0,89404.0,0.11325576]
[1769547004693,0.14164,89420.0,89404.0,0.11325576]
[1769547004911,0.00830947,89421.0,89418.0,0.08954305]
[1769547005139,0.00046453,89440.0,89418.0,0.08954305]
[1769547005140,0.14164,89420.0,89419.0,0.02644927]
[1769547005350,0.03302789,89420.0,89419.0,0.02644927]
[1769547005573,0.12022946,89420.0,89419.0,0.02644927]
[1769547005784,0.00046453,89440.0,89419.0,0.02644927]
[1769547006030,0.00046453,89440.0,89438.0,0.08954305]
[1769547006256,0.00046453,89440.0,89438.0,0.07921917]
[1769547006459,0.00046453,89440.0,89419.0,0.08954305]
[1769547006460,0.00046453,89440.0,89439.0,0.02644927]
[1769547006673,0.00046453,89440.0,89419.0,0.08954305]
[1769547006674,0.14168,89439.0,89421.0,0.02644927]
[1769547006893,0.00046453,89440.0,89433.0,0.08954305]
[1769547007111,0.00046453,89440.0,89434.0,0.03769627]
[1769547007326,0.14121547,89439.0,89434.0,0.03769627]
[1769547008182,0.14121547,89439.0,89434.0,0.03723174]
[1769547008846,0.14121547,89439.0,89422.0,0.04646068]
[1769547009051,0.14121547,89439.0,89420.0,0.32864636]
[1769547009052,0.14121547,89439.0,89424.0,0.04646068]
[1769547009253,0.00046453,89440.0,89426.0,0.04646068]
[1769547009462,0.14168,89438.0,89433.0,0.08954305]
[1769547009679,0.14168,89438.0,89433.0,0.04613694]
[1769547009891,0.14168,89438.0,89395.0,0.04629881]
[1769547010099,0.14168,89438.0,89394.0,0.0004]
[1769547010100,0.29027715,89435.0,89400.0,0.32876366]
[1769547010322,0.29027715,89435.0,89394.0,0.0004]
[1769547010323,0.29027715,89435.0,89420.0,0.32876366]
[1769547010531,0.00046453,89440.0,89419.0,0.04629881]
[1769547010747,0.14168,89434.0,89419.0,0.04629881]
[1769547011173,0.00046453,89440.0,89411.0,0.05529441]
[1769547011377,0.14168,89433.0,89411.0,0.05529441]
[1769547012032,0.00046453,89440.0,89401.0,0.08954305]
[1769547012033,0.00046453,89440.0,89434.0,0.05529441]
[1769547012479,0.14168,89439.0,89434.0,0.05529441]
[1769547012689,0.14168,89439.0,89415.0,0.08954305]
[1769547012894,0.29027715,89438.0,89416.0,0.05754401]
[1769547013514,0.14168,89439.0,89416.0,0.05754401]
[1769547013723,0.14168,89439.0,89420.0,0.32876366]
[1769547013953,0.14168,89439.0,89421.0,0.05754401]
[1769547014185,0.14168,89438.0,89421.0,0.05754401]
[1769547015213,0.14168,89437.0,89429.0,0.06204244]
[1769547015629,0.14168,89437.0,89429.0,0.06201819]
[1769547015837,0.14168,89436.0,89429.0,0.06201819]
[1769547017351,0.14168,89436.0,89420.0,0.38467935]
[1769547017352,0.08952,89464.0,89437.0,0.06652886]
[1769547017572,0.08952,89464.0,89437.0,0.06666823]
[1769547017573,0.14168,89463.0,89437.0,0.06666823]
[1769547018016,0.14168,89462.0,89438.0,0.05590464]
[1769547018223,0.14168,89462.0,89439.0,0.06652886]
[1769547019286,0.08954305,89479.0,89439.0,0.06652886]
[1769547019287,0.29027715,89461.0,89439.0,0.06652886]
[1769547019495,0.29027715,89460.0,89439.0,0.06652886]
[1769547020558,0.29027715,89460.0,89437.0,0.00013937]
[1769547020763,0.29027715,89458.0,89437.0,0.00013937]
[1769547021401,0.29027715,89458.0,89428.0,0.07102733]
[1769547021614,0.29041644,89458.0,89428.0,0.07102733]
[1769547022252,0.29024928,89456.0,89428.0,0.07102733]
[1769547025216,0.00013929,89458.0,89411.0,0.08227383]
[1769547025217,0.05589641,89452.0,89411.0,0.08227383]
[1769547025426,0.29024928,89450.0,89411.0,0.08227383]
[1769547025654,0.29024928,89448.0,89411.0,0.08227383]
[1769547025866,0.08968234,89458.0,89411.0,0.08227383]
[1769547025867,0.34614895,89446.0,89412.0,0.08227383]
[1769547026073,0.05590149,89444.0,89412.0,0.08227383]
[1769547026277,0.29024928,89444.0,89412.0,0.08227383]
[1769547027162,0.29024928,89442.0,89412.0,0.08227383]
[1769547027365,0.31315164,89443.0,89400.0,0.07777513]
[1769547027572,0.05590277,89441.0,89402.0,0.07777513]
[1769547027793,0.29024928,89440.0,89402.0,0.07777513]
[1769547028611,0.29024928,89438.0,89402.0,0.07777513]
[1769547028816,0.29024928,89436.0,89402.0,0.07777513]
[1769547029434,0.29024928,89436.0,89400.0,0.39035806]
[1769547029435,0.23124,89435.0,89410.0,0.32876366]
[1769547029676,0.11488,89434.0,89411.0,0.07102692]
[1769547029909,0.29024928,89433.0,89411.0,0.07102692]
[1769547030349,0.29024928,89433.0,89397.0,0.21659979]
[1769547030557,0.29024928,89433.0,89398.0,0.07102692]
[1769547030820,0.08954305,89432.0,89398.0,0.07102692]
[1769547031043,0.29024928,89431.0,89398.0,0.07102692]
[1769547031309,0.29024928,89430.0,89398.0,0.07102692]
[1769547031994,0.29024928,89430.0,89400.0,0.32876366]
[1769547032216,0.23128,89429.0,89411.0,0.07552534]
[1769547033302,0.29024928,89428.0,89411.0,0.07552534]
[1769547034338,0.29024928,89428.0,89400.0,0.05592806]
[1769547034339,0.08954305,89412.0,89380.0,0.18958714]
[1769547034544,0.29024928,89411.0,89374.0,0.04226145]
[1769547034760,0.29024928,89410.0,89374.0,0.04220146]
[1769547035194,0.08954305,89411.0,89374.0,0.04220146]
[1769547035423,0.29024928,89410.0,89374.0,0.04220146]
[1769547035638,0.29024928,89410.0,89380.0,0.32876366]
[1769547035856,0.29024928,89410.0,89381.0,0.04673]
[1769547036079,0.29024928,89410.0,89362.0,0.22380782]
[1769547036080,0.29024928,89410.0,89390.0,0.32876366]
[1769547036305,0.29024928,89410.0,89391.0,0.04673]
[1769547037641,0.02684,89427.0,89391.0,0.04673]
[1769547037867,0.28619579,89439.0,89411.0,0.05122887]
[1769547038095,0.14172,89426.0,89411.0,0.05122887]
[1769547040717,0.14172,89426.0,89413.0,0.05572809]
[1769547041156,0.14172,89426.0,89414.0,0.05591965]
[1769547041365,0.14172,89426.0,89412.0,0.05592065]
[1769547041583,0.61993227,89479.0,89430.0,0.05797757]
[1769547041584,0.1164,89442.0,89430.0,0.05797757]
[1769547041823,0.28619579,89453.0,89430.0,0.0584421]
[1769547042045,0.08954305,89478.0,89430.0,0.0584421]
[1769547042046,0.02684,89457.0,89441.0,0.05797757]
[1769547042271,0.02684,89457.0,89448.0,0.05797757]
[1769547042718,0.36145376,89489.0,89447.0,0.32876366]
[1769547042719,0.02684,89482.0,89458.0,0.05797757]
[1769547042929,0.29065901,89480.0,89460.0,0.32876366]
[1769547043155,0.29065901,89480.0,89461.0,0.06247696]
[1769547043366,0.29065901,89478.0,89461.0,0.06247696]
[1769547043807,0.29065901,89478.0,89442.0,0.06236162]
[1769547044017,0.29065901,89477.0,89442.0,0.06236162]
[1769547044230,0.29065901,89476.0,89451.0,0.06247696]
[1769547047979,0.29065901,89474.0,89451.0,0.06247696]
[1769547049656,0.29065901,89474.0,89441.0,0.069225]
[1769547049863,0.29065901,89474.0,89450.0,0.32876366]
[1769547050304,0.29065901,89474.0,89451.0,0.066725]
[1769547050513,0.29065901,89472.0,89451.0,0.066725]
[1769547051868,0.29065901,89472.0,89440.0,0.32876366]
[1769547051869,0.29065901,89470.0,89441.0,0.06897422]
[1769547052070,0.29065901,89468.0,89441.0,0.06897422]
[1769547052270,0.29065901,89466.0,89441.0,0.06897422]
[1769547052797,0.08954305,89471.0,89430.0,0.32876366]
[1769547052798,0.00222418,89465.0,89430.0,0.32876366]
[1769547053000,0.29065901,89464.0,89430.0,0.32876366]
[1769547053201,0.29065901,89462.0,89440.0,0.32876366]
[1769547053411,0.0001395,89478.0,89440.0,0.32876366]
[1769547053412,0.29065901,89460.0,89440.0,0.32876366]
[1769547053798,0.29065901,89460.0,89441.0,0.06897422]
[1769547054005,0.29065901,89458.0,89441.0,0.06897422]
[1769547054871,0.29065901,89458.0,89430.0,0.32876366]
[1769547054872,0.14168,89459.0,89458.0,0.01]
[1769547055003,0.14168,89459.0,89458.0,0.07897422]
[1769547055407,0.14168,89459.0,89447.0,0.06897422]
[1769547055611,0.28899711,89458.0,89447.0,0.06897422]
[1769547056228,0.28899711,89458.0,89401.0,0.44741944]
[1769547056462,0.28899711,89458.0,89440.0,0.32876366]
[1769547058966,0.08954305,89457.0,89438.0,0.06897422]
[1769547059170,0.08954305,89457.0,89400.0,0.32876366]
[1769547059171,0.28899711,89456.0,89429.0,0.07122357]
[1769547059603,0.28899711,89456.0,89420.0,0.32876366]
[1769547059832,0.08954305,89457.0,89411.0,0.07122357]
[1769547059833,0.28899711,89442.0,89411.0,0.07122357]
[1769547060045,0.28899711,89442.0,89420.0,0.32876366]
[1769547060253,0.28899711,89453.0,89431.0,0.07122357]
[1769547060452,0.36332376,89487.0,89431.0,0.07122357]
[1769547060453,0.28899711,89451.0,89431.0,0.07122357]
[1769547060662,0.08954305,89482.0,89431.0,0.07122357]
[1769547060862,0.28899711,89475.0,89451.0,0.07122357]
[1769547061069,0.28913658,89475.0,89451.0,0.07122357]
[1769547061309,0.28899711,89473.0,89451.0,0.07122357]
[1769547062417,0.28909271,89473.0,89451.0,0.07122357]
[1769547062573,0.28899711,89471.0,89451.0,0.07122357]
[1769547062766,0.28899711,89469.0,89451.0,0.07122357]
[1769547063030,0.14168,89468.0,89459.0,0.39998723]
[1769547063236,0.14168,89468.0,89459.0,0.07122357]
[1769547063470,0.1417756,89468.0,89459.0,0.07122357]
[1769547063630,0.02684,89467.0,89459.0,0.07122357]
[1769547063803,0.14168,89467.0,89459.0,0.07122357]
[1769547064744,0.14168,89467.0,89459.0,0.07106494]
[1769547066383,0.14168,89466.0,89459.0,0.07106494]
[1769547068048,0.14168,89466.0,89450.0,0.32876366]
[1769547068274,0.28899711,89465.0,89451.0,0.03561178]
[1769547068828,0.14168,89466.0,89431.0,0.0333626]
[1769547068829,0.28899711,89450.0,89431.0,0.0333626]
[1769547069042,0.28899711,89450.0,89431.0,0.0621397]
[1769547069250,0.28899711,89450.0,89440.0,0.32876366]
[1769547069523,9.56e-05,89468.0,89441.0,0.0333626]
[1769547069723,0.02684,89453.0,89451.0,0.0333626]
[1769547069926,0.02514947,89453.0,89451.0,0.0333626]
[1769547070807,0.14168,89452.0,89451.0,0.0333626]
[1769547071155,9.56e-05,89468.0,89442.0,0.65694798]
[1769547071367,0.11484,89460.0,89459.0,0.03111368]
[1769547071792,0.08125262,89460.0,89459.0,0.03111368]
[1769547072023,0.01407786,89460.0,89459.0,0.03111368]
[1769547072244,0.01407786,89460.0,89450.0,0.32847399]
[1769547072521,0.01407786,89460.0,89451.0,0.02611368]
[1769547073279,0.30307497,89460.0,89440.0,0.32847399]
[1769547073476,0.30307497,89460.0,89441.0,0.02390067]
[1769547073891,9.56e-05,89468.0,89430.0,0.2236366]
[1769547073892,9.56e-05,89468.0,89450.0,0.32847399]
[1769547074099,0.14168,89459.0,89451.0,0.02390067]
[1769547074514,9.56e-05,89468.0,89459.0,0.01]
[1769547074716,9.56e-05,89468.0,89460.0,0.02390067]
[1769547074908,0.11484,89467.0,89460.0,0.02390067]
[1769547076296,0.11484,89467.0,89458.0,0.32847399]
[1769547076505,0.11484,89467.0,89450.0,0.32847399]
[1769547076920,0.11484,89467.0,89450.0,0.38954876]
[1769547077372,9.56e-05,89468.0,89450.0,0.38954876]
[1769547077577,0.14168,89466.0,89458.0,0.35237466]
[1769547078572,0.14168,89466.0,89450.0,0.06107477]
[1769547078779,0.14168,89466.0,89453.0,0.05589495]
[1769547078985,0.14168,89466.0,89450.0,0.32847399]
[1769547079412,0.14168,89466.0,89452.0,0.05589562]
[1769547079825,0.14168,89466.0,89451.0,0.05589652]
[1769547080034,0.14168,89466.0,89450.0,0.32847399]
[1769547080456,0.14168,89466.0,89452.0,0.05589556]
[1769547080667,0.11484,89466.0,89450.0,0.32847399]
[1769547080907,0.11484,89466.0,89453.0,0.05589526]
[1769547081093,9.56e-05,89468.0,89450.0,0.32847399]
[1769547081298,0.14168,89465.0,89458.0,0.32847399]
[1769547081514,0.14168,89465.0,89458.0,0.38436613]
[1769547081719,0.14168,89465.0,89458.0,0.32847399]
[1769547082359,9.56e-05,89468.0,89458.0,0.32847399]
[1769547082497,0.14168,89464.0,89458.0,0.32847399]
[1769547082703,0.14168,89464.0,89440.0,0.32847399]
[1769547082704,0.28899711,89463.0,89440.0,0.32847399]
[1769547082910,0.31266548,89461.0,89440.0,0.39139479]
[1769547083322,0.14168,89460.0,89450.0,0.32847399]
[1769547084584,0.14168,89459.0,89450.0,0.32847399]
[1769547084754,0.14168,89459.0,89448.0,0.05589836]
[1769547084755,0.14168,89459.0,89449.0,0.38437134]
[1769547084953,0.14168,89459.0,89449.0,0.3843717]
[1769547085158,0.14168,89458.0,89449.0,0.32847399]
[1769547085379,0.14168,89458.0,89454.0,0.05589428]
[1769547085555,0.14168,89458.0,89450.0,0.05589705]
[1769547085779,0.14168,89458.0,89452.0,0.05589555]
[1769547086124,0.14168,89458.0,89449.0,0.32847399]
[1769547086327,0.11484,89459.0,89450.0,0.0236735]
[1769547086655,0.11484,89459.0,89455.0,0.05589374]
[1769547086856,0.11484,89459.0,89453.0,0.05589499]
[1769547087137,0.11484,89459.0,89450.0,0.0236735]
[1769547087358,0.11484,89459.0,89454.0,0.05589423]
[1769547087491,9.56e-05,89468.0,89459.0,0.01]
[1769547087889,9.56e-05,89468.0,89458.0,0.32847399]
[1769547089265,0.28899711,89467.0,89458.0,0.32847399]
[1769547090379,0.28899711,89465.0,89440.0,0.32847399]
[1769547090677,0.02426597,89460.0,89440.0,0.32847399]
[1769547090897,0.27664302,89457.0,89440.0,0.32847399]
[1769547091040,0.30090899,89457.0,89440.0,0.38437713]
[1769547091394,0.11484,89463.0,89457.0,0.01]
[1769547091597,0.11484,89463.0,89450.0,0.32847399]
[1769547092443,0.39148302,89463.0,89442.0,0.07957552]
[1769547092583,0.39148302,89463.0,89442.0,0.0236735]
[1769547092800,0.39148302,89463.0,89446.0,0.05589924]
[1769547092998,0.39148302,89463.0,89446.0,0.05589963]
[1769547093287,0.39148302,89463.0,89446.0,0.0236735]
[1769547093519,9.56e-05,89468.0,89450.0,0.32847399]
[1769547093718,9.56e-05,89468.0,89463.0,0.01]
[1769547093919,0.11484,89467.0,89463.0,0.01]
[1769547094142,0.11484,89467.0,89458.0,0.32847399]
[1769547094788,0.27664302,89466.0,89458.0,0.32847399]
[1769547095334,0.27664302,89466.0,89450.0,0.32847399]
[1769547095780,0.27664302,89466.0,89446.0,0.0236735]
[1769547096182,0.02426597,89465.0,89440.0,0.32847399]
[1769547096384,0.30090899,89464.0,89450.0,0.32847399]
[1769547096589,0.27664302,89464.0,89450.0,0.32847399]
[1769547096748,0.27664302,89464.0,89451.0,0.05589613]
[1769547096948,0.27664302,89464.0,89450.0,0.32847399]
[1769547099069,9.56e-05,89468.0,89456.0,0.22357235]
[1769547099271,0.11484,89471.0,89464.0,0.0336735]
[1769547099681,0.11484,89471.0,89459.0,0.05589151]
[1769547099920,0.11484,89471.0,89460.0,0.05589059]
[1769547100121,0.11484,89471.0,89459.0,0.05589147]
[1769547100337,0.11484,89471.0,89458.0,0.35214749]
[1769547100338,0.00013947,89475.0,89458.0,0.32847399]
[1769547100549,1e-08,89475.0,89474.0,0.07955565]
[1769547100753,0.02684,89487.0,89474.0,0.07955565]
[1769547100754,0.02684,89487.0,89484.0,0.0558755]
[1769547100966,0.02689194,89487.0,89483.0,0.05587602]
[1769547101183,0.02689194,89487.0,89485.0,0.05587515]
[1769547101184,5.194e-05,89487.0,89485.0,0.05587515]
[1769547101363,5.194e-05,89487.0,89477.0,0.32847399]
[1769547101607,5.194e-05,89487.0,89483.0,0.05587613]
[1769547101835,5.194e-05,89487.0,89477.0,0.35214749]
[1769547102048,5.194e-05,89487.0,89477.0,0.32847399]
[1769547102274,5.194e-05,89487.0,89472.0,0.05588313]
[1769547102482,0.02426597,89485.0,89461.0,0.05589027]
[1769547102688,5.194e-05,89487.0,89462.0,0.05588927]